[Event "Late-Titled-Tuesday-Blitz-August-29-2023"]
[Site "Chess.com"]
[Date "2023.08.29"]
[Round "7"]
[White "Cluke86"]
[Black "Jaka_Brilej"]
[Result "0-1"]
[WhiteElo "2287"]
[BlackElo "2510"]
[TimeControl "180+1"]
[EndTime "15:16:38 PDT"]
[Termination "Jaka_Brilej won on time"]

1. e4 {[%clk 0:03:00.9]} 1... e6 {[%clk 0:02:59.9]} 2. d4 {[%clk 0:02:59.6]}
2... d5 {[%clk 0:02:59.6]} 3. Nc3 {[%clk 0:02:59.7]} 3... Nf6 {[%clk 0:02:57.1]}
4. e5 {[%clk 0:02:59.8]} 4... Nfd7 {[%clk 0:02:57.1]} 5. Qg4 {[%clk 0:03:00.1]}
5... c5 {[%clk 0:02:53.4]} 6. Nb5 {[%clk 0:02:59.7]} 6... Nc6 {[%clk 0:02:43.8]}
7. Nd6+ {[%clk 0:02:58.8]} 7... Bxd6 {[%clk 0:02:43.3]} 8. Qxg7 {[%clk 0:02:59]}
8... Nxd4 {[%clk 0:02:27.7]} 9. Qxh8+ {[%clk 0:02:55.5]} 9... Bf8 {[%clk
0:02:27.3]} 10. Kd1 {[%clk 0:02:46.2]} 10... Qh4 {[%clk 0:02:12.2]} 11. Be3
{[%clk 0:02:35]} 11... Nf5 {[%clk 0:02:12.1]} 12. Nf3 {[%clk 0:02:33]} 12...
Nxe3+ {[%clk 0:01:55.5]} 13. fxe3 {[%clk 0:02:33.9]} 13... Qe4 {[%clk
0:01:55.8]} 14. Bd3 {[%clk 0:02:23.5]} 14... Qxe3 {[%clk 0:01:55.6]} 15. Re1
{[%clk 0:02:13.9]} 15... Qf2 {[%clk 0:01:37.3]} 16. Qg8 {[%clk 0:02:10]} 16...
c4 {[%clk 0:01:30.7]} 17. Rf1 {[%clk 0:02:07.7]} 17... Qb6 {[%clk 0:01:26.1]}
18. Bxh7 {[%clk 0:01:59]} 18... Qxb2 {[%clk 0:01:25]} 19. Rc1 {[%clk 0:01:58.6]}
19... b6 {[%clk 0:01:06.9]} 20. Ng5 {[%clk 0:01:53]} 20... Qd4+ {[%clk
0:01:06.3]} 21. Bd3 {[%clk 0:01:46.5]} 21... Nxe5 {[%clk 0:00:49]} 22. Nxf7
{[%clk 0:01:43.5]} 22... Qg4+ {[%clk 0:00:45.9]} 23. Qxg4 {[%clk 0:01:39.5]}
23... Nxg4 {[%clk 0:00:46.8]} 24. Bg6 {[%clk 0:01:11.3]} 24... Ne3+ {[%clk
0:00:46.3]} 25. Ke2 {[%clk 0:01:11.3]} 25... Nxf1 {[%clk 0:00:46.9]} 26. Rxf1
{[%clk 0:01:06.8]} 26... Ba6 {[%clk 0:00:40.5]} 27. c3 {[%clk 0:01:05.6]} 27...
Bg7 {[%clk 0:00:22.7]} 28. Ne5+ {[%clk 0:00:47.9]} 28... Kd8 {[%clk 0:00:20.9]}
29. Nc6+ {[%clk 0:00:32.1]} 29... Kc7 {[%clk 0:00:20.8]} 30. Nb4 {[%clk
0:00:29.5]} 30... Bxc3 {[%clk 0:00:18.8]} 31. Nxa6+ {[%clk 0:00:29]} 31... Kb7
{[%clk 0:00:19.2]} 32. Rf3 {[%clk 0:00:19.8]} 32... Ba5 {[%clk 0:00:17.4]} 33.
Bf7 {[%clk 0:00:15.9]} 33... Kxa6 {[%clk 0:00:17.3]} 34. Bxe6 {[%clk 0:00:16.6]}
34... Rd8 {[%clk 0:00:14]} 35. Rf5 {[%clk 0:00:14.9]} 35... Re8 {[%clk
0:00:14.1]} 36. Re5 {[%clk 0:00:12.4]} 36... c3 {[%clk 0:00:10.5]} 37. Kd3
{[%clk 0:00:09.9]} 37... Bb4 {[%clk 0:00:10]} 38. h4 {[%clk 0:00:05.4]} 38...
Bd6 {[%clk 0:00:10.1]} 39. Re2 {[%clk 0:00:04.7]} 39... Bb4 {[%clk 0:00:08.2]}
40. Bxd5 {[%clk 0:00:04.7]} 40... Rxe2 {[%clk 0:00:08.1]} 41. Kxe2 {[%clk
0:00:05.2]} 41... c2 {[%clk 0:00:08.7]} 42. Bc4+ {[%clk 0:00:02.9]} 42... Ka5
{[%clk 0:00:09]} 0-1

[Event "Late-Titled-Tuesday-Blitz-August-29-2023"]
[Site "Chess.com"]
[Date "2023.08.29"]
[Round "7"]
[White "platy3"]
[Black "eldur16"]
[Result "1-0"]
[WhiteElo "2907"]
[BlackElo "2629"]
[TimeControl "180+1"]
[EndTime "15:16:40 PDT"]
[Termination "platy3 won on time"]

1. e4 {[%clk 0:03:00.9]} 1... e5 {[%clk 0:02:59]} 2. Nf3 {[%clk 0:03:01]} 2...
Nc6 {[%clk 0:02:59.2]} 3. Bc4 {[%clk 0:03:01.3]} 3... Bc5 {[%clk 0:02:58.6]} 4.
c3 {[%clk 0:03:01.8]} 4... Nf6 {[%clk 0:02:57.9]} 5. d4 {[%clk 0:03:02.6]} 5...
exd4 {[%clk 0:02:57.5]} 6. b4 {[%clk 0:03:03.4]} 6... Bb6 {[%clk 0:02:52.7]} 7.
e5 {[%clk 0:03:03.5]} 7... Ne4 {[%clk 0:02:51.7]} 8. b5 {[%clk 0:03:03.5]} 8...
d5 {[%clk 0:02:48.7]} 9. exd6 {[%clk 0:02:52.4]} 9... Na5 {[%clk 0:02:39.6]} 10.
dxc7 {[%clk 0:02:40.8]} 10... Qxc7 {[%clk 0:02:35.3]} 11. Bd5 {[%clk 0:02:34.8]}
11... Nf6 {[%clk 0:02:16.9]} 12. Qe2+ {[%clk 0:02:05.6]} 12... Kd8 {[%clk
0:02:12.9]} 13. Bg5 {[%clk 0:01:03.6]} 13... Re8 {[%clk 0:02:09.8]} 14. Be4
{[%clk 0:01:04]} 14... Bf5 {[%clk 0:02:00.8]} 15. Nbd2 {[%clk 0:01:03.2]} 15...
dxc3 {[%clk 0:01:27.1]} 16. O-O {[%clk 0:01:03.3]} 16... cxd2 {[%clk 0:01:19.8]}
17. Qxd2+ {[%clk 0:01:03.6]} 17... Qd7 {[%clk 0:01:16.2]} 18. Bxf5 {[%clk
0:01:03.1]} 18... Qxd2 {[%clk 0:01:15.5]} 19. Bxd2 {[%clk 0:00:59.8]} 19... g6
{[%clk 0:00:42.5]} 20. Bh3 {[%clk 0:00:54.2]} 20... Nd7 {[%clk 0:00:33.8]} 21.
Rad1 {[%clk 0:00:52.6]} 21... f5 {[%clk 0:00:29.7]} 22. Bg5+ {[%clk 0:00:46.6]}
22... Kc7 {[%clk 0:00:24]} 23. Bf4+ {[%clk 0:00:46.8]} 23... Kc8 {[%clk
0:00:21]} 24. Ng5 {[%clk 0:00:35.2]} 24... Bc5 {[%clk 0:00:19.1]} 25. g4 {[%clk
0:00:28.8]} 25... h6 {[%clk 0:00:09.3]} 26. Nf7 {[%clk 0:00:29.2]} 26... g5
{[%clk 0:00:08.4]} 27. gxf5 {[%clk 0:00:22.2]} 27... Nf6 {[%clk 0:00:08.4]} 28.
Bd6 {[%clk 0:00:19.4]} 28... b6 {[%clk 0:00:06.6]} 29. Bxc5 {[%clk 0:00:19.1]}
29... bxc5 {[%clk 0:00:06.5]} 30. Nd6+ {[%clk 0:00:19.6]} 30... Kc7 {[%clk
0:00:06.8]} 31. Nxe8+ {[%clk 0:00:20.1]} 31... Rxe8 {[%clk 0:00:06.1]} 32. Rfe1
{[%clk 0:00:21]} 32... Rxe1+ {[%clk 0:00:02.6]} 33. Rxe1 {[%clk 0:00:20.7]}
33... c4 {[%clk 0:00:03]} 34. Re6 {[%clk 0:00:21]} 34... c3 {[%clk 0:00:02.8]}
35. Re1 {[%clk 0:00:04]} 35... Kd6 {[%clk 0:00:02.7]} 36. Bf1 {[%clk 0:00:04.3]}
36... Kd5 {[%clk 0:00:02.5]} 37. Bd3 {[%clk 0:00:04.3]} 37... Kd4 {[%clk
0:00:02.3]} 38. Bc2 {[%clk 0:00:04.4]} 38... Nc4 {[%clk 0:00:02.4]} 39. Re6
{[%clk 0:00:04.8]} 39... Nd5 {[%clk 0:00:01.4]} 40. f6 {[%clk 0:00:05.5]} 40...
Ne5 {[%clk 0:00:01]} 41. Rxe5 {[%clk 0:00:05.1]} 1-0

[Event "Late-Titled-Tuesday-Blitz-August-29-2023"]
[Site "Chess.com"]
[Date "2023.08.29"]
[Round "7"]
[White "Kostukov_Alex"]
[Black "FaustinoOro"]
[Result "0-1"]
[WhiteElo "2424"]
[BlackElo "2872"]
[TimeControl "180+1"]
[EndTime "15:16:40 PDT"]
[Termination "FaustinoOro won by resignation"]

1. g3 {[%clk 0:03:00.9]} 1... d5 {[%clk 0:02:59.9]} 2. Bg2 {[%clk 0:03:01.3]}
2... e5 {[%clk 0:03:00.4]} 3. c4 {[%clk 0:03:00.6]} 3... dxc4 {[%clk 0:02:51.7]}
4. Qa4+ {[%clk 0:02:59.7]} 4... c6 {[%clk 0:02:52]} 5. Qxc4 {[%clk 0:03:00.1]}
5... Nf6 {[%clk 0:02:52.7]} 6. Nf3 {[%clk 0:02:58.6]} 6... Bd6 {[%clk
0:02:53.3]} 7. O-O {[%clk 0:02:57]} 7... O-O {[%clk 0:02:53.4]} 8. Nc3 {[%clk
0:02:53.8]} 8... h6 {[%clk 0:02:50.1]} 9. d4 {[%clk 0:02:48.3]} 9... exd4 {[%clk
0:02:34.6]} 10. Nxd4 {[%clk 0:02:44.5]} 10... Nbd7 {[%clk 0:02:28.6]} 11. Rd1
{[%clk 0:02:40.7]} 11... Ne5 {[%clk 0:02:27.7]} 12. Qb3 {[%clk 0:02:39.8]} 12...
Qe7 {[%clk 0:02:27.7]} 13. h3 {[%clk 0:02:34.5]} 13... Re8 {[%clk 0:02:24]} 14.
e4 {[%clk 0:02:34.2]} 14... Bc5 {[%clk 0:02:11.7]} 15. Be3 {[%clk 0:02:32.1]}
15... Ng6 {[%clk 0:01:56.5]} 16. Rac1 {[%clk 0:02:14.5]} 16... Be6 {[%clk
0:01:51.3]} 17. Qc2 {[%clk 0:02:10.4]} 17... Bb4 {[%clk 0:01:35.6]} 18. a3
{[%clk 0:01:56.6]} 18... Ba5 {[%clk 0:01:32.5]} 19. Nxe6 {[%clk 0:01:43.5]}
19... Qxe6 {[%clk 0:01:29.5]} 20. f3 {[%clk 0:01:42.2]} 20... Nh5 {[%clk
0:01:22.2]} 21. Ne2 {[%clk 0:01:35.5]} 21... Bc7 {[%clk 0:01:11.7]} 22. f4
{[%clk 0:01:30.3]} 22... Qc8 {[%clk 0:01:04.9]} 23. e5 {[%clk 0:01:23.8]} 23...
Bxe5 {[%clk 0:00:49.2]} 24. fxe5 {[%clk 0:01:18.2]} 24... Nxe5 {[%clk
0:00:50.1]} 25. g4 {[%clk 0:01:11.3]} 25... Nf6 {[%clk 0:00:48.9]} 26. Bd4
{[%clk 0:01:09.4]} 26... Nfd7 {[%clk 0:00:43.2]} 27. Ng3 {[%clk 0:01:08.6]}
27... Qc7 {[%clk 0:00:33.4]} 28. Nf5 {[%clk 0:01:08.5]} 28... f6 {[%clk
0:00:33.6]} 29. Re1 {[%clk 0:01:02.9]} 29... Kh8 {[%clk 0:00:31.3]} 30. Qd2
{[%clk 0:01:00.8]} 30... Nf8 {[%clk 0:00:25]} 31. Bxe5 {[%clk 0:00:57.8]} 31...
fxe5 {[%clk 0:00:23.8]} 32. Rcd1 {[%clk 0:00:52.1]} 32... Ne6 {[%clk 0:00:22.5]}
33. Nh4 {[%clk 0:00:32.5]} 33... Nf4 {[%clk 0:00:21.6]} 34. Kh1 {[%clk
0:00:27.1]} 34... Qe7 {[%clk 0:00:17.6]} 35. Qxf4 {[%clk 0:00:22.4]} 35... Qxh4
{[%clk 0:00:17.8]} 36. Rxe5 {[%clk 0:00:20.4]} 36... Rxe5 {[%clk 0:00:13.3]} 37.
Qxe5 {[%clk 0:00:20.2]} 37... Rf8 {[%clk 0:00:13.7]} 38. Rf1 {[%clk 0:00:19.9]}
38... Rg8 {[%clk 0:00:13.1]} 39. Qf5 {[%clk 0:00:19]} 39... Re8 {[%clk 0:00:09]}
40. Kh2 {[%clk 0:00:17.4]} 40... Qe7 {[%clk 0:00:07.6]} 41. Rf4 {[%clk 0:00:15]}
41... Qd6 {[%clk 0:00:07.6]} 42. Be4 {[%clk 0:00:14]} 42... g6 {[%clk
0:00:07.1]} 43. Qxg6 {[%clk 0:00:12.5]} 43... Qxf4+ {[%clk 0:00:07.2]} 44. Kg2
{[%clk 0:00:12.8]} 44... Qxe4+ {[%clk 0:00:07.5]} 45. Qxe4 {[%clk 0:00:13.1]}
45... Rxe4 {[%clk 0:00:08.4]} 46. Kf3 {[%clk 0:00:13.7]} 46... Rc4 {[%clk
0:00:09]} 0-1

[Event "Late-Titled-Tuesday-Blitz-August-29-2023"]
[Site "Chess.com"]
[Date "2023.08.29"]
[Round "7"]
[White "laskakid"]
[Black "KorolDimitriy75"]
[Result "1-0"]
[WhiteElo "2184"]
[BlackElo "2329"]
[TimeControl "180+1"]
[EndTime "15:16:42 PDT"]
[Termination "laskakid won on time"]

1. d4 {[%clk 0:03:00.9]} 1... Nf6 {[%clk 0:02:59.7]} 2. c4 {[%clk 0:03:00.3]}
2... c5 {[%clk 0:02:59.9]} 3. d5 {[%clk 0:03:00]} 3... b5 {[%clk 0:03:00.1]} 4.
Qc2 {[%clk 0:02:59.9]} 4... bxc4 {[%clk 0:03:00]} 5. e4 {[%clk 0:03:00]} 5... d6
{[%clk 0:03:00.9]} 6. Bxc4 {[%clk 0:02:58.3]} 6... g6 {[%clk 0:03:01.5]} 7. Nf3
{[%clk 0:02:57.6]} 7... Bg7 {[%clk 0:03:02.1]} 8. O-O {[%clk 0:02:57.5]} 8...
O-O {[%clk 0:03:02.6]} 9. Re1 {[%clk 0:02:56.9]} 9... Nbd7 {[%clk 0:03:03.2]}
10. h3 {[%clk 0:02:56]} 10... Nb6 {[%clk 0:03:03.2]} 11. Bf1 {[%clk 0:02:54.1]}
11... e6 {[%clk 0:03:01.6]} 12. dxe6 {[%clk 0:02:52.3]} 12... Bxe6 {[%clk
0:03:02.5]} 13. Nc3 {[%clk 0:02:52.2]} 13... d5 {[%clk 0:02:37.3]} 14. e5 {[%clk
0:02:51.4]} 14... Nfd7 {[%clk 0:02:34.3]} 15. Bf4 {[%clk 0:02:50.7]} 15... h6
{[%clk 0:01:40.7]} 16. Rad1 {[%clk 0:02:49.1]} 16... Qe7 {[%clk 0:01:31.7]} 17.
a4 {[%clk 0:02:42.2]} 17... Rab8 {[%clk 0:01:20.5]} 18. a5 {[%clk 0:02:11.4]}
18... Nc4 {[%clk 0:01:17.6]} 19. Bxc4 {[%clk 0:02:11]} 19... dxc4 {[%clk
0:01:17.2]} 20. Ne4 {[%clk 0:02:02.9]} 20... Bf5 {[%clk 0:00:56.8]} 21. Qxc4
{[%clk 0:01:47.2]} 21... Rb4 {[%clk 0:00:54.6]} 22. Qd5 {[%clk 0:01:41.2]} 22...
Be6 {[%clk 0:00:35.3]} 23. Qd2 {[%clk 0:01:34.3]} 23... g5 {[%clk 0:00:31.2]}
24. Bg3 {[%clk 0:01:28.3]} 24... Rfb8 {[%clk 0:00:30.2]} 25. Nd6 {[%clk
0:01:05.7]} 25... Rxb2 {[%clk 0:00:26.4]} 26. Qd3 {[%clk 0:01:06]} 26... R2b3
{[%clk 0:00:18.2]} 27. Qe4 {[%clk 0:01:01.1]} 27... R3b4 {[%clk 0:00:17.3]} 28.
Qc6 {[%clk 0:00:55]} 28... c4 {[%clk 0:00:15.2]} 29. Nd4 {[%clk 0:00:49.9]}
29... Nf8 {[%clk 0:00:13.5]} 30. N4f5 {[%clk 0:00:45.9]} 30... Bxf5 {[%clk
0:00:11.5]} 31. Nxf5 {[%clk 0:00:45.9]} 31... Qb7 {[%clk 0:00:11.6]} 32. Nxh6+
{[%clk 0:00:40.5]} 32... Kh7 {[%clk 0:00:10.5]} 33. Qd6 {[%clk 0:00:37.5]} 33...
Bxh6 {[%clk 0:00:08.6]} 34. h4 {[%clk 0:00:19.2]} 34... Re8 {[%clk 0:00:07.4]}
35. hxg5 {[%clk 0:00:19]} 35... Bxg5 {[%clk 0:00:07.4]} 36. f4 {[%clk
0:00:18.6]} 36... Bh6 {[%clk 0:00:05.1]} 37. Bh4 {[%clk 0:00:18.1]} 37... Ng6
{[%clk 0:00:03.9]} 38. Bf6 {[%clk 0:00:17.5]} 38... Bxf4 {[%clk 0:00:03.2]} 39.
Qd7 {[%clk 0:00:16]} 39... Qxd7 {[%clk 0:00:02.7]} 40. Rxd7 {[%clk 0:00:16.1]}
40... Kg8 {[%clk 0:00:03]} 41. e6 {[%clk 0:00:13.9]} 41... Rxe6 {[%clk
0:00:01.5]} 42. Rxe6 {[%clk 0:00:13.1]} 42... fxe6 {[%clk 0:00:01.6]} 43. Rg7+
{[%clk 0:00:13.4]} 43... Kf8 {[%clk 0:00:01.8]} 44. Rxg6 {[%clk 0:00:13.7]}
44... Kf7 {[%clk 0:00:01.9]} 45. Bc3 {[%clk 0:00:11.4]} 1-0

[Event "Late-Titled-Tuesday-Blitz-August-29-2023"]
[Site "Chess.com"]
[Date "2023.08.29"]
[Round "7"]
[White "Bilan_Danila"]
[Black "AsaHoffmann"]
[Result "1-0"]
[WhiteElo "2483"]
[BlackElo "2362"]
[TimeControl "180+1"]
[EndTime "15:16:45 PDT"]
[Termination "Bilan_Danila won by resignation"]

1. d4 {[%clk 0:03:00.9]} 1... Nf6 {[%clk 0:02:58.1]} 2. Nf3 {[%clk 0:03:01.4]}
2... d6 {[%clk 0:02:57.6]} 3. g3 {[%clk 0:02:55.6]} 3... c6 {[%clk 0:02:57.1]}
4. Bg2 {[%clk 0:02:55.7]} 4... Bf5 {[%clk 0:02:56.7]} 5. O-O {[%clk 0:02:56.2]}
5... h6 {[%clk 0:02:56.5]} 6. c4 {[%clk 0:02:53.8]} 6... Nbd7 {[%clk 0:02:56.3]}
7. Nc3 {[%clk 0:02:53.7]} 7... e5 {[%clk 0:02:55.4]} 8. dxe5 {[%clk 0:02:32.8]}
8... dxe5 {[%clk 0:02:54]} 9. Re1 {[%clk 0:02:20.1]} 9... Be7 {[%clk 0:02:46.7]}
10. e4 {[%clk 0:02:18.8]} 10... Bh7 {[%clk 0:02:46.4]} 11. h3 {[%clk 0:02:13.7]}
11... Qc7 {[%clk 0:02:45.7]} 12. Be3 {[%clk 0:02:13.3]} 12... O-O {[%clk
0:02:42.7]} 13. Qc2 {[%clk 0:02:13.1]} 13... Rfd8 {[%clk 0:02:41.9]} 14. Nh4
{[%clk 0:02:03.6]} 14... Bc5 {[%clk 0:02:39.5]} 15. Nf5 {[%clk 0:02:00.7]} 15...
Bxe3 {[%clk 0:02:35.5]} 16. fxe3 {[%clk 0:01:51.1]} 16... Nc5 {[%clk 0:02:33.6]}
17. Rad1 {[%clk 0:01:35.8]} 17... Rxd1 {[%clk 0:02:27.7]} 18. Rxd1 {[%clk
0:01:35.2]} 18... Rd8 {[%clk 0:02:27.4]} 19. g4 {[%clk 0:01:25.7]} 19... Bxf5
{[%clk 0:02:22.2]} 20. exf5 {[%clk 0:01:22.2]} 20... Rxd1+ {[%clk 0:02:17.4]}
21. Qxd1 {[%clk 0:01:20.3]} 21... e4 {[%clk 0:02:16.6]} 22. Qd4 {[%clk
0:01:13.7]} 22... Qb6 {[%clk 0:02:01.1]} 23. b3 {[%clk 0:00:58]} 23... Qb4
{[%clk 0:01:46.9]} 24. Kh2 {[%clk 0:00:47.8]} 24... a5 {[%clk 0:01:41.2]} 25.
Kg3 {[%clk 0:00:25.2]} 25... a4 {[%clk 0:01:38.8]} 26. bxa4 {[%clk 0:00:24.9]}
26... Nxa4 {[%clk 0:01:36.1]} 27. Nxe4 {[%clk 0:00:21.7]} 27... Nxe4+ {[%clk
0:01:32.1]} 28. Bxe4 {[%clk 0:00:22.6]} 28... Qe1+ {[%clk 0:01:19.7]} 29. Kh2
{[%clk 0:00:22.4]} 29... Nc3 {[%clk 0:01:14.9]} 30. f6 {[%clk 0:00:09.6]} 30...
Qf2+ {[%clk 0:01:00.9]} 31. Kh1 {[%clk 0:00:06]} 31... Qxf6 {[%clk 0:01:00.3]}
32. Qxf6 {[%clk 0:00:05.8]} 32... gxf6 {[%clk 0:01:00.3]} 33. Bf5 {[%clk
0:00:06.1]} 33... Nd1 {[%clk 0:00:58.7]} 34. e4 {[%clk 0:00:03.7]} 34... Ne3
{[%clk 0:00:56.7]} 35. c5 {[%clk 0:00:03.4]} 35... Kf8 {[%clk 0:00:52]} 36. Kg1
{[%clk 0:00:03.3]} 36... Ke7 {[%clk 0:00:51.5]} 37. Bc8 {[%clk 0:00:03.1]} 37...
Kd8 {[%clk 0:00:50.1]} 38. Bxb7 {[%clk 0:00:03.3]} 38... Kc7 {[%clk 0:00:50.1]}
39. Ba6 {[%clk 0:00:03.7]} 39... Nc2 {[%clk 0:00:48.3]} 40. Bc4 {[%clk
0:00:02.6]} 40... Nb4 {[%clk 0:00:46.4]} 41. Bxf7 {[%clk 0:00:02.7]} 41... Na6
{[%clk 0:00:46.3]} 42. Kf2 {[%clk 0:00:02.9]} 42... Nxc5 {[%clk 0:00:46.2]} 43.
Ke3 {[%clk 0:00:03.4]} 43... Kd6 {[%clk 0:00:46.1]} 44. Kf4 {[%clk 0:00:02.8]}
44... Nd3+ {[%clk 0:00:44.7]} 45. Kf5 {[%clk 0:00:02.4]} 45... Ke7 {[%clk
0:00:44.8]} 46. Bb3 {[%clk 0:00:02.4]} 46... c5 {[%clk 0:00:44.5]} 47. Kg6
{[%clk 0:00:02.4]} 47... Nb2 {[%clk 0:00:44.2]} 48. Kxh6 {[%clk 0:00:02.4]}
48... c4 {[%clk 0:00:44.4]} 49. Bc2 {[%clk 0:00:03]} 49... c3 {[%clk 0:00:44.4]}
50. h4 {[%clk 0:00:02.2]} 50... Nc4 {[%clk 0:00:44.2]} 51. Kg6 {[%clk
0:00:02.4]} 51... Ne3 {[%clk 0:00:44]} 52. Bd3 {[%clk 0:00:02.4]} 52... c2
{[%clk 0:00:43.6]} 53. Bxc2 {[%clk 0:00:02.8]} 53... Nxc2 {[%clk 0:00:43.5]} 54.
h5 {[%clk 0:00:03.7]} 54... Nd4 {[%clk 0:00:42.7]} 55. h6 {[%clk 0:00:04.3]}
55... Ne6 {[%clk 0:00:42.3]} 56. h7 {[%clk 0:00:04.5]} 56... Nf8+ {[%clk
0:00:42.2]} 57. Kg7 {[%clk 0:00:05]} 57... Nxh7 {[%clk 0:00:42.2]} 58. Kxh7
{[%clk 0:00:05.9]} 58... Ke6 {[%clk 0:00:42.4]} 59. Kg6 {[%clk 0:00:06.5]} 59...
Ke5 {[%clk 0:00:42.3]} 60. a4 {[%clk 0:00:06.8]} 60... Kxe4 {[%clk 0:00:42]} 61.
Kxf6 {[%clk 0:00:07.1]} 61... Kd5 {[%clk 0:00:41.9]} 62. g5 {[%clk 0:00:07.3]}
62... Kc5 {[%clk 0:00:42]} 63. g6 {[%clk 0:00:08.2]} 1-0

[Event "Late-Titled-Tuesday-Blitz-August-29-2023"]
[Site "Chess.com"]
[Date "2023.08.29"]
[Round "7"]
[White "Sinquefield"]
[Black "Mesa_1"]
[Result "1-0"]
[WhiteElo "2445"]
[BlackElo "2546"]
[TimeControl "180+1"]
[EndTime "15:16:47 PDT"]
[Termination "Sinquefield won on time"]

1. d4 {[%clk 0:03:00.9]} 1... Nf6 {[%clk 0:02:54.1]} 2. Nf3 {[%clk 0:02:58.9]}
2... g6 {[%clk 0:02:54.6]} 3. Bg5 {[%clk 0:02:59]} 3... Bg7 {[%clk 0:02:55.3]}
4. Nbd2 {[%clk 0:02:59.6]} 4... d5 {[%clk 0:02:53.4]} 5. e3 {[%clk 0:02:59.9]}
5... O-O {[%clk 0:02:53.8]} 6. Be2 {[%clk 0:02:59.4]} 6... b6 {[%clk 0:02:54.5]}
7. O-O {[%clk 0:02:58.3]} 7... Bb7 {[%clk 0:02:55.2]} 8. c4 {[%clk 0:02:56.7]}
8... c5 {[%clk 0:02:46.7]} 9. cxd5 {[%clk 0:02:52.9]} 9... Nxd5 {[%clk
0:02:39.7]} 10. dxc5 {[%clk 0:02:52.7]} 10... Bxb2 {[%clk 0:02:37.3]} 11. Bh6
{[%clk 0:02:32.8]} 11... Nc3 {[%clk 0:02:23.5]} 12. Qe1 {[%clk 0:02:18.7]} 12...
Re8 {[%clk 0:02:10.8]} 13. Bc4 {[%clk 0:02:09.6]} 13... Bd5 {[%clk 0:02:02.7]}
14. e4 {[%clk 0:01:55.3]} 14... Bxc4 {[%clk 0:01:58.3]} 15. Nxc4 {[%clk
0:01:56.2]} 15... Bxa1 {[%clk 0:01:51.3]} 16. Qxa1 {[%clk 0:01:57.1]} 16... Qd3
{[%clk 0:01:46.8]} 17. Nce5 {[%clk 0:01:41.9]} 17... Qc2 {[%clk 0:01:30]} 18.
Nd4 {[%clk 0:01:24.9]} 18... Qxe4 {[%clk 0:01:24.1]} 19. Qxc3 {[%clk 0:01:07.8]}
19... Qxe5 {[%clk 0:01:23.2]} 20. c6 {[%clk 0:00:58.5]} 20... Nxc6 {[%clk
0:01:18]} 21. Qxc6 {[%clk 0:00:54.9]} 21... Qxd4 {[%clk 0:01:16.4]} 22. h3
{[%clk 0:00:52.3]} 22... Qc5 {[%clk 0:00:59.2]} 23. Qf3 {[%clk 0:00:47.3]} 23...
Qf5 {[%clk 0:00:58.1]} 24. Qc3 {[%clk 0:00:45.1]} 24... Qf6 {[%clk 0:00:57.4]}
25. Qa3 {[%clk 0:00:43.2]} 25... a5 {[%clk 0:00:55.4]} 26. Re1 {[%clk
0:00:37.2]} 26... Rac8 {[%clk 0:00:53.3]} 27. Re3 {[%clk 0:00:37.1]} 27... Rc5
{[%clk 0:00:46.9]} 28. Rf3 {[%clk 0:00:35.2]} 28... Rf5 {[%clk 0:00:45.5]} 29.
Qa4 {[%clk 0:00:27]} 29... Rd8 {[%clk 0:00:40.4]} 30. Rd3 {[%clk 0:00:22.3]}
30... Qa1+ {[%clk 0:00:31.7]} 31. Kh2 {[%clk 0:00:20]} 31... Qe5+ {[%clk
0:00:27.5]} 32. f4 {[%clk 0:00:19.2]} 32... Qb8 {[%clk 0:00:26.8]} 33. Re3
{[%clk 0:00:12.8]} 33... Re8 {[%clk 0:00:19.3]} 34. Qc4 {[%clk 0:00:11.7]} 34...
Rf6 {[%clk 0:00:17.2]} 35. g4 {[%clk 0:00:11.6]} 35... Rc8 {[%clk 0:00:15.8]}
36. Qd4 {[%clk 0:00:11.3]} 36... Rd8 {[%clk 0:00:14.7]} 37. Qc3 {[%clk
0:00:10.8]} 37... Qc8 {[%clk 0:00:14.6]} 38. Qb2 {[%clk 0:00:10.6]} 38... Rd7
{[%clk 0:00:11.8]} 39. Rxe7 {[%clk 0:00:08.9]} 39... Rxe7 {[%clk 0:00:11.3]} 40.
Qxf6 {[%clk 0:00:09.3]} 40... Qc2+ {[%clk 0:00:09.9]} 41. Kg3 {[%clk 0:00:09.3]}
41... Re3+ {[%clk 0:00:03.2]} 42. Kh4 {[%clk 0:00:09.8]} 42... Qf2+ {[%clk
0:00:03.3]} 43. Kg5 {[%clk 0:00:09.8]} 1-0